[Event "CZE-ch U10 2020"]
[Site "Kouty nad Desnou"]
[Date "2020.03.10"]
[Round "5.11"]
[White "Milek, Tobias"]
[Black "Policar, Martin"]
[Result "1-0"]
[ECO "C48"]
[WhiteElo "1163"]
[BlackElo "1264"]
[Annotator "NA"]
[PlyCount "77"]
[EventDate "2020.03.07"]
[EventCountry "CZE"]
[SourceTitle "playchess.com"]
[Source "ChessBase"]
[SourceQuality "1"]
[TimeControl "5400+30"]

1. e4 {[%emt 0:00:00]} Nf6 {[%emt 0:00:00]} 2. Nc3 {[%emt 0:00:00]} e5 {[%emt 0:00:03]} 3. Nf3 {[%emt 0:00:25]} Nc6 {[%emt 0:01:03]} 4. Bb5 {[%emt 0:00:26]} Bc5 {[%emt 0:01:34]} 5. Nxe5 {[%emt 0:01:54]} Qe7 {[%emt 0:04:01]} 6. Nxc6 {[%emt 0:02:20]} dxc6 {[%emt 0:00:41]} 7. Be2 {[%emt 0:01:41]} Nxe4 {[%emt 0:02:08]} 8. Nxe4 {[%emt 0:00:42]} Qxe4 {[%emt 0:00:34]} 9. O-O {[%emt 0:02:12]} O-O {[%emt 0:04:29]} 10. d3 {[%emt 0:01:59]} Qh4 {[%emt 0:01:19]} 11. g3 {[%emt 0:01:04]} Qe7 {[%emt 0:01:14]} 12. Bf3 {[%emt 0:00:26]} Re8 {[%emt 0:01:59]} 13. Bd2 {[%emt 0:01:28]} Be6 {[%emt 0:08:49]} 14. Re1 {[%emt 0:01:58]} Qd6 {[%emt 0:03:01]} 15. Bf4 {[%emt 0:00:24]} Qd4 {[%emt 0:00:33]} 16. Be3 {[%emt 0:01:25]} Qd6 {[%emt 0:02:38]} 17. d4 {[%emt 0:01:09]} Bb6 {[%emt 0:01:37]} 18. c3 {[%emt 0:02:32]} Rab8 {[%emt 0:01:05]} 19. Bf4 {[%emt 0:01:41]} Qd8 {[%emt 0:03:11]} 20. Qc2 {[%emt 0:03:05]} c5 {[%emt 0:03:28]} 21. d5 {[%emt 0:04:30]} Bh3 {[%emt 0:07:17]} 22. Rxe8+ {[%emt 0:01:30]} Qxe8 {[%emt 0:00:45]} 23. Qd2 {[%emt 0:00:16]} Rd8 {[%emt 0:01:32]} 24. Re1 {[%emt 0:00:44]} Be6 {[%emt 0:02:32]} 25. Qc1 {[%emt 0:00:52]} Qb5 {[%emt 0:07:45]} 26. dxe6 {[%emt 0:01:27]} fxe6 {[%emt 0:00:55]} 27. Rxe6 {[%emt 0:00:35]} Qd3 {[%emt 0:00:34]} 28. Re3 {[%emt 0:05:31]} Qg6 {[%emt 0:00:43]} 29. Be4 {[%emt 0:01:10]} Qh5 {[%emt 0:00:22]} 30. Rd3 {[%emt 0:01:33]} Re8 {[%emt 0:02:06]} 31. Re3 {[%emt 0:02:01]} Rd8 {[%emt 0:01:02]} 32. Bf3 {[%emt 0:00:42]} Qg6 {[%emt 0:05:44]} 33. Re1 {[%emt 0:01:44]} c6 {[%emt 0:01:39]} 34. Qe3 {[%emt 0:01:35]} c4 {[%emt 0:01:48]} 35. Qe6+ {[%emt 0:00:55]} Qxe6 {[%emt 0:00:30]} 36. Rxe6 {[%emt 0:00:09]} Rf8 {[%emt 0:00:30]} 37. Re7 {[%emt 0:00:47]} c5 {[%emt 0:01:03]} 38. Bd5+ {[%emt 0:00:46]} Kh8 {[%emt 0:00:10]} 39. Be5 {[%emt 0:00:29]} 1-0

[Event "CZE-ch U10 2020"]
[Site "Kouty nad Desnou"]
[Date "2020.03.10"]
[Round "5.12"]
[White "Letal, Hynek"]
[Black "Soucek, Andrej"]
[Result "1-0"]
[ECO "B35"]
[WhiteElo "1127"]
[BlackElo "1043"]
[Annotator "NA RC"]
[PlyCount "88"]
[EventDate "2020.03.07"]
[EventCountry "CZE"]
[SourceTitle "playchess.com"]
[Source "ChessBase"]
[SourceQuality "1"]
[TimeControl "5400+30"]

1. e4 {[%emt 0:00:00]} c5 {[%emt 0:00:00]} 2. Nf3 {[%emt 0:00:00]} Nc6 {[%emt 0:00:00]} 3. d4 {[%emt 0:00:00]} cxd4 {[%emt 0:00:40]} 4. Nxd4 {[%emt 0:00:21]} g6 {[%emt 0:00:25]} 5. Nc3 {[%emt 0:01:10]} Bg7 {[%emt 0:00:33]} 6. Be3 {[%emt 0:01:23]} Nf6 {[%emt 0:01:35]} 7. Bc4 {[%emt 0:01:18]} O-O {[%emt 0:01:26]} 8. Bb3 {[%emt 0:00:33]} d6 {[%emt 0:01:30]} 9. f3 {[%emt 0:01:02]} Bd7 {[%emt 0:01:24]} 10. Qd2 {[%emt 0:01:21]} Re8 {[%emt 0:01:25]} 11. h4 {[%emt 0:02:43]} h5 {[%emt 0:00:36]} 12. O-O-O {[%emt 0:01:15]} a6 {[%emt 0:02:32]} 13. Bh6 {[%emt 0:04:09]} Nxd4 {[%emt 0:00:27]} 14. Bxg7 {[%emt 0:02:26]} Nxb3+ {[%emt 0:00:09]} 15. cxb3 {[%emt 0:00:06]} Kxg7 {[%emt 0:00:13]} 16. g4 {[%emt 0:00:42]} Rc8 {[%emt 0:00:16]} 17. Kb1 {[%emt 0:00:09]} b5 {[%emt 0:02:45]} 18. e5 {[%emt 0:00:51]} dxe5 19. g5 {[%emt 0:02:42]} Bf5+ {[%emt 0:11:00]} 20. Ka1 {[%emt 0:01:23]} Nd7 {[%emt 0:03:16]} 21. Qe2 {[%emt 0:04:58]} e6 {[%emt 0:04:54]} 22. Rd6 {[%emt 0:01:40]} Qc7 {[%emt 0:05:02]} 23. Rhd1 {[%emt 0:01:29]} Red8 {[%emt 0:05:33]} 24. Qd2 {[%emt 0:01:13]} b4 {[%emt 0:01:35]} 25. Rxd7 {[%emt 0:04:26]} Rxd7 {[%emt 0:01:25]} 26. Qxd7 {[%emt 0:00:43]} Qxd7 {[%emt 0:00:10]} 27. Rxd7 {[%emt 0:00:05]} bxc3 {[%emt 0:00:12]} 28. bxc3 {[%emt 0:00:12]} Rxc3 {[%emt 0:00:12]} 29. Ra7 {[%emt 0:01:02]} Bd3 {[%emt 0:00:48]} 30. Kb2 {[%emt 0:00:57]} Rc2+ {[%emt 0:00:10]} 31. Ka3 {[%emt 0:00:05]} Rf2 {[%emt 0:00:20]} 32. b4 {[%emt 0:00:33]} Rxf3 {[%emt 0:00:15]} 33. Ka4 {[%emt 0:00:06]} Bb5+ {[%emt 0:00:21]} 34. Ka5 {[%emt 0:00:07]} Ra3+ {[%emt 0:00:08]} 35. Kb6 {[%emt 0:00:04]} Rxa2 {[%emt 0:00:18]} 36. Kc5 {[%emt 0:00:28]} e4 {[%emt 0:00:14]} 37. Kd4 {[%emt 0:00:44]} Re2 {[%emt 0:00:25]} 38. Kc3 {[%emt 0:00:40]} Re3+ {[%emt 0:00:31]} 39. Kd4 {[%emt 0:00:34]} Re1 {[%emt 0:00:19]} 40. Ke5 {[%emt 0:00:45]} e3 {[%emt 0:00:35]} 41. Kf4 {[%emt 0:00:50]} e2 {[%emt 0:00:11]} 42. Kg3 {[%emt 0:00:15]} Rg1+ {[%emt 0:00:10]} 43. Kh2 {[%emt 0:00:15]} e1=Q {[%emt 0:01:03]} 44. Kh3 {[%emt 0:00:22]} Qg3# {[%emt 0:00:07]} 1-0

[Event "CZE-ch U10 2020"]
[Site "Kouty nad Desnou"]
[Date "2020.03.11"]
[Round "6.1"]
[White "Chon, Jeremy"]
[Black "Delgerdalai, Bayarjavkhlan"]
[Result "0-1"]
[ECO "B53"]
[WhiteElo "1449"]
[BlackElo "1553"]
[Annotator "NA"]
[PlyCount "81"]
[EventDate "2020.03.07"]
[EventCountry "CZE"]
[SourceTitle "playchess.com"]
[Source "ChessBase"]
[SourceQuality "1"]
[TimeControl "5400+30"]

1. e4 {[%emt 0:00:00]} c5 {[%emt 0:00:00]} 2. Nf3 {[%emt 0:00:00]} d6 {[%emt 0:00:00]} 3. d4 {[%emt 0:00:00]} cxd4 {[%emt 0:00:01]} 4. Qxd4 {[%emt 0:00:05]} Nc6 {[%emt 0:00:36]} 5. Bb5 {[%emt 0:00:05]} Bd7 {[%emt 0:00:43]} 6. Bxc6 {[%emt 0:00:16]} bxc6 {[%emt 0:01:08]} 7. Nc3 {[%emt 0:00:57]} Qc7 {[%emt 0:01:16]} 8. O-O {[%emt 0:01:36]} e5 {[%emt 0:03:32]} 9. Qd3 {[%emt 0:08:09]} Nf6 {[%emt 0:01:34]} 10. Bg5 {[%emt 0:08:51]} Be7 {[%emt 0:04:47]} 11. Rfd1 {[%emt 0:11:27]} Rd8 {[%emt 0:06:55]} 12. Re1 {[%emt 0:07:21]} O-O {[%emt 0:01:10]} 13. Rad1 {[%emt 0:04:30]} Be6 {[%emt 0:03:38]} 14. Qe2 {[%emt 0:06:08]} Ne8 {[%emt 0:04:40]} 15. Bxe7 {[%emt 0:01:45]} Qxe7 {[%emt 0:00:53]} 16. Rd2 {[%emt 0:08:20]} Nc7 {[%emt 0:07:07]} 17. Red1 {[%emt 0:03:23]} f6 {[%emt 0:01:11]} 18. a3 {[%emt 0:03:41]} d5 {[%emt 0:01:15]} 19. b4 {[%emt 0:01:56]} d4 {[%emt 0:03:12]} 20. Na4 {[%emt 0:01:24]} Nb5 {[%emt 0:01:59]} 21. Ra1 {[%emt 0:06:42]} a5 {[%emt 0:06:28]} 22. Nc5 {[%emt 0:03:52]} Bf7 {[%emt 0:01:42]} 23. Nd3 {[%emt 0:04:18]} Nc3 {[%emt 0:02:42]} 24. Qe1 {[%emt 0:02:47]} Bg6 {[%emt 0:00:34]} 25. Nh4 {[%emt 0:04:42]} Bxe4 {[%emt 0:01:45]} 26. Nc5 {[%emt 0:01:37]} Bg6 {[%emt 0:03:57]} 27. Nxg6 {[%emt 0:00:23]} hxg6 {[%emt 0:00:17]} 28. f3 {[%emt 0:01:10]} g5 {[%emt 0:03:57]} 29. Nd3 {[%emt 0:03:09]} Qf7 {[%emt 0:07:16]} 30. Nc1 {[%emt 0:02:36]} Ra8 {[%emt 0:02:07]} 31. Ne2 {[%emt 0:01:13]} Nd5 {[%emt 0:02:06]} 32. Rdd1 {[%emt 0:00:27]} Qa7 {[%emt 0:02:22]} 33. Kh1 {[%emt 0:00:22]} Ne3 {[%emt 0:01:19]} 34. Rdb1 {[%emt 0:00:13]} Nxc2 {[%emt 0:00:15]} 35. Qd2 {[%emt 0:00:54]} Nxa1 {[%emt 0:00:16]} 36. Rxa1 {[%emt 0:00:03]} c5 {[%emt 0:01:33]} 37. Rb1 {[%emt 0:02:10]} c4 {[%emt 0:00:23]} 38. Rc1 {[%emt 0:01:52]} d3 {[%emt 0:00:50]} 39. Nc3 {[%emt 0:00:11]} Qd4 {[%emt 0:00:40]} 40. Nb5 {[%emt 0:00:53]} Qf4 {[%emt 0:00:38]} 41. Qb2 0-1

[Event "CZE-ch U10 2020"]
[Site "Kouty nad Desnou"]
[Date "2020.03.11"]
[Round "6.3"]
[White "Krautschneider, Daniel Jan"]
[Black "Svadlenka, Michal"]
[Result "0-1"]
[ECO "B35"]
[WhiteElo "1236"]
[BlackElo "1309"]
[Annotator "NA"]
[PlyCount "108"]
[EventDate "2020.03.07"]
[EventCountry "CZE"]
[SourceTitle "playchess.com"]
[Source "ChessBase"]
[SourceQuality "1"]
[TimeControl "5400+30"]

1. e4 {[%emt 0:00:00]} c5 {[%emt 0:00:00]} 2. Nf3 {[%emt 0:00:20]} Nc6 3. d4 {[%emt 0:00:14]} cxd4 {[%emt 0:00:38]} 4. Nxd4 {[%emt 0:00:18]} g6 {[%emt 0:00:27]} 5. Nc3 {[%emt 0:00:17]} Bg7 {[%emt 0:00:29]} 6. Be3 {[%emt 0:00:25]} Nf6 {[%emt 0:00:32]} 7. Bc4 O-O 8. f3 {[%emt 0:00:36]} Qb6 {[%emt 0:02:30]} 9. Qd3 {[%emt 0:16:29]} Ne5 {[%emt 0:03:07]} 10. Qe2 {[%emt 0:00:33]} Qxb2 {[%emt 0:00:41]} 11. O-O {[%emt 0:04:32]} Qxc3 {[%emt 0:01:52]} 12. Bb3 {[%emt 0:00:14]} Qc7 {[%emt 0:02:46]} 13. f4 {[%emt 0:02:21]} Nc6 {[%emt 0:00:40]} 14. f5 {[%emt 0:00:56]} Nxe4 {[%emt 0:03:03]} 15. fxg6 {[%emt 0:05:41]} Nxd4 {[%emt 0:04:27]} 16. gxh7+ {[%emt 0:01:43]} Kh8 {[%emt 0:01:11]} 17. Qh5 {[%emt 0:01:34]} Nf6 {[%emt 0:04:25]} 18. Rxf6 {[%emt 0:06:37]} Bxf6 {[%emt 0:02:00]} 19. Bh6 {[%emt 0:02:22]} Bg7 {[%emt 0:07:02]} 20. Bxg7+ {[%emt 0:01:54]} Kxg7 {[%emt 0:00:50]} 21. h8=Q+ Rxh8 {[%emt 0:00:52]} 22. Qxf7+ {[%emt 0:01:52]} Kh6 {[%emt 0:00:33]} 23. Qxe7 {[%emt 0:11:44]} Qf4 {[%emt 0:01:59]} 24. Rf1 {[%emt 0:03:23]} Rh7 {[%emt 0:01:56]} 25. Qe1 {[%emt 0:04:03]} Qg5 {[%emt 0:04:16]} 26. h4 {[%emt 0:02:35]} Nf3+ {[%emt 0:12:37]} 27. Rxf3 {[%emt 0:00:29]} Qc5+ {[%emt 0:00:10]} 28. Kh1 {[%emt 0:00:20]} Rg7 {[%emt 0:01:00]} 29. Qd2+ {[%emt 0:07:06]} Kh7 {[%emt 0:01:49]} 30. Rf6 {[%emt 0:05:11]} Qh5 {[%emt 0:07:28]} 31. Qd3+ {[%emt 0:00:30]} Rg6 {[%emt 0:00:53]} 32. Rf7+ {[%emt 0:00:26]} Kh6 {[%emt 0:00:32]} 33. Qe3+ {[%emt 0:06:39]} Rg5 {[%emt 0:01:02]} 34. Qxg5+ {[%emt 0:02:06]} Qxg5 {[%emt 0:00:23]} 35. hxg5+ {[%emt 0:00:11]} Kxg5 {[%emt 0:00:10]} 36. Rf8 {[%emt 0:00:49]} Kg6 {[%emt 0:01:07]} 37. Kg1 {[%emt 0:01:35]} Kg7 {[%emt 0:00:08]} 38. Rg8+ {[%emt 0:00:22]} Kf6 {[%emt 0:00:15]} 39. g4 {[%emt 0:01:30]} Ke5 {[%emt 0:00:35]} 40. g5 {[%emt 0:00:34]} b6 {[%emt 0:00:12]} 41. g6 {[%emt 0:00:38]} Kf6 {[%emt 0:00:24]} 42. Kf2 {[%emt 0:01:17]} Bb7 {[%emt 0:00:25]} 43. Rxa8 {[%emt 0:00:10]} Bxa8 {[%emt 0:00:12]} 44. Bf7 {[%emt 0:00:06]} Be4 {[%emt 0:00:16]} 45. c3 {[%emt 0:01:46]} Bxg6 {[%emt 0:00:35]} 46. Bxg6 {[%emt 0:00:10]} Kxg6 {[%emt 0:00:04]} 47. Ke3 {[%emt 0:00:02]} Kf5 {[%emt 0:00:29]} 48. Kd4 {[%emt 0:00:17]} Ke6 {[%emt 0:00:08]} 49. a4 {[%emt 0:01:23]} a6 {[%emt 0:00:25]} 50. c4 {[%emt 0:00:50]} Kd6 {[%emt 0:00:18]} 51. Kc3 {[%emt 0:01:33]} Kc5 {[%emt 0:01:48]} 52. Kb3 {[%emt 0:00:12]} a5 {[%emt 0:01:19]} 53. Kc3 {[%emt 0:00:14]} d6 {[%emt 0:00:03]} 54. Kb3 {[%emt 0:00:42]} Kd4 {[%emt 0:00:44]} 0-1

[Event "CZE-ch U10 2020"]
[Site "Kouty nad Desnou"]
[Date "2020.03.11"]
[Round "6.4"]
[White "Bouska, Jiri"]
[Black "Roubal, Matyas"]
[Result "0-1"]
[ECO "B01"]
[WhiteElo "1643"]
[BlackElo "1380"]
[Annotator "NA RC"]
[PlyCount "70"]
[EventDate "2020.03.07"]
[EventCountry "CZE"]
[SourceTitle "playchess.com"]
[Source "ChessBase"]
[SourceQuality "1"]
[TimeControl "5400+30"]

1. e4 {[%emt 0:00:00]} d5 {[%emt 0:00:00]} 2. exd5 Nf6 {[%emt 0:00:00]} 3. Nf3 {[%emt 0:00:32]} Bg4 {[%emt 0:00:56]} 4. Be2 {[%emt 0:00:32]} Qxd5 {[%emt 0:00:23]} 5. Nc3 {[%emt 0:00:29]} Qh5 {[%emt 0:00:05]} 6. h3 {[%emt 0:00:17]} Nc6 {[%emt 0:02:55]} 7. d3 {[%emt 0:02:08]} O-O-O {[%emt 0:03:17]} 8. Be3 {[%emt 0:00:32]} e5 {[%emt 0:02:12]} 9. Rh2 {[%emt 0:00:50]} Bxf3 {[%emt 0:09:41]} 10. Bxf3 {[%emt 0:00:58]} Qf5 {[%emt 0:03:07]} 11. Bxc6 {[%emt 0:00:47]} bxc6 {[%emt 0:00:05]} 12. g4 {[%emt 0:00:25]} Qe6 {[%emt 0:00:27]} 13. Qe2 {[%emt 0:00:32]} Bb4 {[%emt 0:01:02]} 14. a3 {[%emt 0:03:47]} Bxc3+ {[%emt 0:00:53]} 15. bxc3 {[%emt 0:00:06]} e4 {[%emt 0:08:56]} 16. d4 {[%emt 0:00:38]} Nd5 {[%emt 0:01:51]} 17. Qc4 {[%emt 0:04:38]} Nxe3 18. Qxe6+ {[%emt 0:00:29]} fxe6 {[%emt 0:04:02]} 19. fxe3 {[%emt 0:00:22]} Rhf8 {[%emt 0:00:08]} 20. Ke2 {[%emt 0:00:18]} Rf3 {[%emt 0:00:22]} 21. Rf1 {[%emt 0:00:19]} Rdf8 {[%emt 0:08:03]} 22. Rhf2 {[%emt 0:00:46]} Rxf2+ {[%emt 0:00:08]} 23. Rxf2 {[%emt 0:00:12]} Rxf2+ {[%emt 0:00:11]} 24. Kxf2 {[%emt 0:00:04]} g5 {[%emt 0:00:05]} 25. Kg3 {[%emt 0:00:09]} Kb7 {[%emt 0:00:37]} 26. Kf2 {[%emt 0:00:25]} Kb6 {[%emt 0:00:04]} 27. Ke2 {[%emt 0:00:13]} Kb5 {[%emt 0:00:02]} 28. Kd2 {[%emt 0:00:11]} Kc4 {[%emt 0:00:09]} 29. a4 {[%emt 0:00:33]} a6 {[%emt 0:00:41]} 30. Kd1 {[%emt 0:00:09]} Kxc3 {[%emt 0:00:04]} 31. Kc1 {[%emt 0:00:11]} Kb4 {[%emt 0:00:03]} 32. Kb2 {[%emt 0:00:09]} Kxa4 {[%emt 0:02:14]} 33. Kc3 {[%emt 0:00:07]} Kb5 {[%emt 0:00:07]} 34. Kb3 {[%emt 0:00:05]} c5 {[%emt 0:00:33]} 35. c4+ {[%emt 0:00:18]} Kc6 {[%emt 0:00:21]} 0-1

[Event "CZE-ch U10 2020"]
[Site "Kouty nad Desnou"]
[Date "2020.03.11"]
[Round "6.5"]
[White "Gorej, Vojtech"]
[Black "Svadlenka, Dominik"]
[Result "1-0"]
[ECO "B18"]
[WhiteElo "1360"]
[BlackElo "1410"]
[Annotator "NA"]
[PlyCount "77"]
[EventDate "2020.03.07"]
[EventCountry "CZE"]
[SourceTitle "playchess.com"]
[Source "ChessBase"]
[SourceQuality "1"]
[TimeControl "5400+30"]

1. e4 {[%emt 0:00:00]} c6 {[%emt 0:00:00]} 2. d4 {[%emt 0:00:36]} d5 {[%emt 0:00:12]} 3. Nc3 {[%emt 0:00:44]} dxe4 {[%emt 0:00:24]} 4. Nxe4 {[%emt 0:00:44]} Bf5 {[%emt 0:00:28]} 5. Ng3 {[%emt 0:01:18]} Bg6 {[%emt 0:00:29]} 6. h4 {[%emt 0:00:49]} h6 {[%emt 0:00:41]} 7. h5 Bh7 {[%emt 0:00:28]} 8. Nf3 {[%emt 0:02:11]} e6 {[%emt 0:00:41]} 9. Bd3 {[%emt 0:00:46]} Bxd3 {[%emt 0:00:44]} 10. Qxd3 {[%emt 0:00:24]} Nf6 {[%emt 0:01:07]} 11. Bf4 {[%emt 0:00:46]} Nbd7 {[%emt 0:01:21]} 12. O-O-O {[%emt 0:01:42]} Be7 {[%emt 0:01:20]} 13. Ne4 {[%emt 0:01:03]} O-O {[%emt 0:03:35]} 14. Ne5 {[%emt 0:02:20]} Nd5 {[%emt 0:02:59]} 15. Qg3 {[%emt 0:03:49]} Nxf4 {[%emt 0:01:36]} 16. Qxf4 {[%emt 0:00:36]} f5 {[%emt 0:03:51]} 17. Nd2 {[%emt 0:00:19]} Bg5 {[%emt 0:00:21]} 18. Qg3 {[%emt 0:01:38]} Nb6 {[%emt 0:06:23]} 19. f4 {[%emt 0:01:12]} Bf6 {[%emt 0:00:50]} 20. Ndf3 {[%emt 0:00:44]} Na4 {[%emt 0:03:18]} 21. Ng6 {[%emt 0:02:46]} Re8 {[%emt 0:25:31]} 22. Nfe5 {[%emt 0:02:24]} Nb6 {[%emt 0:04:12]} 23. Qb3 {[%emt 0:02:58]} a5 {[%emt 0:01:31]} 24. Kb1 {[%emt 0:01:56]} a4 {[%emt 0:01:43]} 25. Qf3 {[%emt 0:01:09]} a3 {[%emt 0:01:30]} 26. b3 {[%emt 0:01:20]} Nd5 {[%emt 0:02:46]} 27. c4 {[%emt 0:01:39]} Nc7 {[%emt 0:05:06]} 28. Rhg1 {[%emt 0:01:30]} Bxe5 {[%emt 0:06:20]} 29. dxe5 {[%emt 0:00:43]} Qb8 {[%emt 0:01:07]} 30. Rd7 {[%emt 0:01:08]} Rd8 {[%emt 0:02:14]} 31. Rxd8+ {[%emt 0:00:42]} Qxd8 {[%emt 0:00:19]} 32. Rd1 {[%emt 0:00:12]} Qe8 {[%emt 0:01:23]} 33. g4 {[%emt 0:00:45]} Qf7 {[%emt 0:03:01]} 34. Qh3 {[%emt 0:02:53]} b5 {[%emt 0:01:57]} 35. gxf5 {[%emt 0:02:25]} exf5 {[%emt 0:01:00]} 36. cxb5 {[%emt 0:01:03]} cxb5 {[%emt 0:03:30]} 37. Qd3 {[%emt 0:00:24]} Ne6 {[%emt 0:07:04]} 38. Qxb5 {[%emt 0:01:52]} Qa7 {[%emt 0:01:44]} 39. Qd5 {[%emt 0:01:24]} 1-0

[Event "CZE-ch U10 2020"]
[Site "Kouty nad Desnou"]
[Date "2020.03.11"]
[Round "6.6"]
[White "Komarek, Tobias"]
[Black "Chernyy, Andrey"]
[Result "1-0"]
[ECO "C55"]
[WhiteElo "1235"]
[BlackElo "1208"]
[Annotator "NA"]
[PlyCount "157"]
[EventDate "2020.03.07"]
[EventCountry "CZE"]
[SourceTitle "playchess.com"]
[Source "ChessBase"]
[SourceQuality "1"]
[TimeControl "5400+30"]

1. e4 {[%emt 0:00:00]} e5 {[%emt 0:00:31]} 2. Nf3 {[%emt 0:00:00]} Nc6 {[%emt 0:01:32]} 3. Bc4 {[%emt 0:00:00]} Nf6 {[%emt 0:01:31]} 4. d3 {[%emt 0:00:46]} Be7 {[%emt 0:01:38]} 5. Nc3 {[%emt 0:00:12]} d6 {[%emt 0:01:20]} 6. a3 {[%emt 0:00:16]} O-O {[%emt 0:01:59]} 7. h3 {[%emt 0:00:44]} Be6 {[%emt 0:02:10]} 8. Nd5 {[%emt 0:00:17]} Re8 {[%emt 0:05:20]} 9. O-O {[%emt 0:00:12]} h6 {[%emt 0:00:43]} 10. Be3 {[%emt 0:00:11]} Qd7 {[%emt 0:02:20]} 11. Qd2 {[%emt 0:00:30]} Kh7 {[%emt 0:08:20]} 12. Nxe7 {[%emt 0:08:22]} Qxe7 {[%emt 0:01:43]} 13. Bxe6 {[%emt 0:00:51]} Qxe6 {[%emt 0:01:25]} 14. Rfe1 {[%emt 0:01:05]} Qd7 {[%emt 0:06:46]} 15. Nh4 {[%emt 0:03:45]} Ne7 {[%emt 0:04:54]} 16. f4 {[%emt 0:10:37]} Ng6 {[%emt 0:00:58]} 17. Nf5 {[%emt 0:01:51]} exf4 {[%emt 0:01:16]} 18. Bxf4 {[%emt 0:00:21]} Nxf4 {[%emt 0:00:37]} 19. Qxf4 {[%emt 0:00:14]} Rg8 {[%emt 0:01:11]} 20. e5 {[%emt 0:04:19]} dxe5 {[%emt 0:00:38]} 21. Rxe5 {[%emt 0:00:51]} Rae8 {[%emt 0:06:27]} 22. Rae1 {[%emt 0:05:13]} Rxe5 {[%emt 0:04:11]} 23. Rxe5 {[%emt 0:00:19]} Re8 {[%emt 0:01:11]} 24. Rxe8 {[%emt 0:02:53]} Nxe8 {[%emt 0:02:59]} 25. Qe4 {[%emt 0:03:10]} g6 {[%emt 0:03:03]} 26. Ne3 {[%emt 0:01:37]} c6 {[%emt 0:03:28]} 27. Ng4 {[%emt 0:01:25]} Qe6 {[%emt 0:08:00]} 28. Qxe6 {[%emt 0:01:16]} fxe6 {[%emt 0:00:51]} 29. Kf2 {[%emt 0:00:10]} Kg7 {[%emt 0:00:24]} 30. Ke3 {[%emt 0:00:25]} h5 {[%emt 0:01:07]} 31. Nf2 {[%emt 0:00:13]} Nd6 {[%emt 0:00:57]} 32. g4 {[%emt 0:02:11]} Kf6 {[%emt 0:00:32]} 33. gxh5 {[%emt 0:00:50]} gxh5 {[%emt 0:00:30]} 34. h4 {[%emt 0:01:11]} Nf5+ {[%emt 0:02:39]} 35. Kf4 {[%emt 0:00:51]} Nxh4 {[%emt 0:02:57]} 36. Ne4+ {[%emt 0:00:13]} Ke7 {[%emt 0:02:05]} 37. Kg5 {[%emt 0:00:52]} Nf5 {[%emt 0:01:28]} 38. Kxh5 {[%emt 0:00:30]} Ne3 {[%emt 0:01:11]} 39. c3 {[%emt 0:00:31]} Nd1 {[%emt 0:00:22]} 40. b4 {[%emt 0:00:16]} Nb2 {[%emt 0:01:45]} 41. d4 {[%emt 0:00:31]} Nc4 {[%emt 0:00:50]} 42. a4 {[%emt 0:00:12]} b6 {[%emt 0:01:23]} 43. Kg5 {[%emt 0:00:24]} Nd6 {[%emt 0:00:38]} 44. Nd2 {[%emt 0:00:53]} Nf5 {[%emt 0:01:52]} 45. Ne4 {[%emt 0:00:36]} Nd6 {[%emt 0:00:58]} 46. Kf4 {[%emt 0:00:45]} Nxe4 {[%emt 0:01:45]} 47. Kxe4 {[%emt 0:00:31]} a6 {[%emt 0:03:06]} 48. c4 {[%emt 0:00:31]} Kd6 {[%emt 0:00:34]} 49. c5+ {[%emt 0:00:31]} bxc5 {[%emt 0:00:23]} 50. dxc5+ {[%emt 0:00:20]} Kd7 {[%emt 0:00:34]} 51. Ke5 {[%emt 0:00:17]} Ke7 {[%emt 0:01:07]} 52. a5 {[%emt 0:00:01]} Kd7 {[%emt 0:00:22]} 53. Kf6 {[%emt 0:00:12]} e5 {[%emt 0:00:33]} 54. Kxe5 {[%emt 0:00:08]} Ke7 {[%emt 0:01:08]} 55. Kf5 {[%emt 0:01:02]} Kf7 {[%emt 0:00:50]} 56. Kg5 {[%emt 0:00:21]} Ke7 {[%emt 0:01:59]} 57. Kh6 {[%emt 0:01:13]} Kd7 {[%emt 0:01:30]} 58. Kh7 {[%emt 0:01:01]} Ke6 {[%emt 0:01:17]} 59. Kg6 {[%emt 0:00:21]} Ke7 {[%emt 0:00:17]} 60. Kg7 {[%emt 0:00:44]} Ke8 {[%emt 0:00:19]} 61. Kf6 {[%emt 0:00:34]} Kd7 {[%emt 0:03:07]} 62. Kf7 {[%emt 0:00:26]} Kd8 {[%emt 0:02:54]} 63. Ke6 {[%emt 0:00:31]} Kc7 {[%emt 0:00:31]} 64. Ke7 {[%emt 0:00:23]} Kc8 {[%emt 0:00:24]} 65. Kd6 {[%emt 0:00:11]} Kb7 {[%emt 0:00:16]} 66. Kd7 {[%emt 0:00:16]} Ka8 {[%emt 0:00:51]} 67. Kxc6 {[%emt 0:00:16]} Ka7 {[%emt 0:00:32]} 68. Kc7 {[%emt 0:00:13]} Ka8 {[%emt 0:00:30]} 69. Kb6 {[%emt 0:00:10]} Kb8 {[%emt 0:00:12]} 70. Kxa6 {[%emt 0:00:12]} Kc7 {[%emt 0:00:48]} 71. b5 {[%emt 0:00:24]} Kb8 {[%emt 0:00:09]} 72. Kb6 {[%emt 0:00:19]} Ka8 {[%emt 0:00:13]} 73. a6 {[%emt 0:00:18]} Kb8 {[%emt 0:00:14]} 74. c6 {[%emt 0:00:13]} Ka8 {[%emt 0:00:08]} 75. Kc5 {[%emt 0:00:11]} Kb8 {[%emt 0:00:20]} 76. b6 {[%emt 0:00:18]} Ka8 {[%emt 0:00:14]} 77. Kd6 {[%emt 0:00:21]} Kb8 {[%emt 0:01:02]} 78. c7+ {[%emt 0:00:38]} Kc8 {[%emt 0:00:34]} 79. b7# {[%emt 0:00:09]} 1-0